bitfinex-derivatives/quotes_BTCF0:USTF0_20250327
["timestamp","ask_amount","ask_price","bid_price","bid_amount"]
[1743039548808,0.2286932,87230.0,87229.0,0.200427]
[1743039549423,0.2721932,87230.0,87229.0,0.200427]
[1743039550412,0.2286932,87230.0,87229.0,0.200427]
[1743039551312,0.22866961,87230.0,87229.0,0.200427]
[1743039552615,0.58946961,87230.0,87229.0,0.200427]
[1743039554929,0.22866961,87230.0,87229.0,0.200427]
[1743039555224,0.58948943,87230.0,87229.0,0.200427]
[1743039555919,0.22868943,87230.0,87229.0,0.200427]
[1743039556120,0.58948943,87230.0,87229.0,0.200427]
[1743039556321,0.22868943,87230.0,87229.0,0.200427]
[1743039556521,0.58948943,87230.0,87229.0,0.200427]
[1743039557222,0.5894856,87230.0,87229.0,0.200427]
[1743039557429,0.70246881,87230.0,87229.0,0.200427]
[1743039557926,0.81709451,87230.0,87229.0,0.200427]
[1743039558621,0.80801394,87230.0,87229.0,0.200427]
[1743039560723,0.58040503,87230.0,87229.0,0.200427]
[1743039563231,0.21960503,87230.0,87229.0,0.200427]
[1743039563432,0.58040503,87230.0,87229.0,0.200427]
[1743039564435,0.75228341,87230.0,87229.0,0.200427]
[1743039565338,0.39148341,87230.0,87229.0,0.200427]
[1743039565637,0.75228341,87230.0,87229.0,0.200427]
[1743039566447,0.27685771,87230.0,87229.0,0.200427]
[1743039566646,0.19025771,87230.0,87229.0,0.200427]
[1743039567547,0.17993197,87230.0,87229.0,1.700427]
[1743039568150,0.17833197,87230.0,87229.0,1.700427]
[1743039568350,0.17997197,87230.0,87229.0,1.700427]
[1743039568551,0.26707197,87230.0,87229.0,1.700427]
[1743039570757,0.22337197,87230.0,87229.0,1.700427]
[1743039571054,0.17997197,87230.0,87229.0,1.700427]
[1743039571464,0.17833197,87230.0,87229.0,1.700427]
[1743039571642,0.00645359,87230.0,87229.0,1.700427]
[1743039571957,0.00653359,87231.0,87230.0,0.1146257]
[1743039572257,0.00813359,87231.0,87230.0,0.1146257]
[1743039572554,0.00813359,87231.0,87230.0,0.1967257]
[1743039573353,0.05053359,87231.0,87230.0,0.1967257]
[1743039573546,0.05053359,87231.0,87230.0,0.1977257]
[1743039573746,0.05053359,87231.0,87230.0,0.1987257]
[1743039574147,0.20925789,87231.0,87230.0,0.1987257]
[1743039574855,0.09463359,87231.0,87230.0,0.1987257]
[1743039578661,0.10496747,87231.0,87230.0,0.1987257]
[1743039583064,0.01846747,87231.0,87230.0,0.1987257]
[1743039584363,0.05876747,87231.0,87230.0,0.1987257]
[1743039585662,0.05716747,87231.0,87230.0,0.1987257]
[1743039585969,0.05876747,87231.0,87230.0,0.1987257]
[1743039586169,0.10066747,87231.0,87230.0,0.1987257]
[1743039587166,0.10066747,87231.0,87230.0,1.6987257]
[1743039588062,0.10070747,87231.0,87230.0,1.6987257]
[1743039588465,0.09906747,87231.0,87230.0,1.6987257]
[1743039588770,0.10066747,87231.0,87230.0,1.6987257]
[1743039589357,0.09906747,87231.0,87230.0,1.6987257]
[1743039589671,0.10070747,87231.0,87230.0,1.6987257]
[1743039589868,0.09906747,87231.0,87230.0,1.6987257]
[1743039590373,0.10066747,87231.0,87230.0,1.6987257]
[1743039590565,0.09906747,87231.0,87230.0,1.6987257]
[1743039590765,0.10066747,87231.0,87230.0,1.6987257]
[1743039597873,0.10058747,87231.0,87230.0,1.6987257]
[1743039598080,0.31625929,87231.0,87230.0,1.6987257]
[1743039599670,0.32689353,87231.0,87230.0,1.6987257]
[1743039600479,0.20627073,87236.0,87235.0,0.1146191]
[1743039600970,0.20787073,87236.0,87235.0,0.1146191]
[1743039601175,0.20787073,87236.0,87235.0,1.6993191]
[1743039601377,0.20627073,87236.0,87235.0,1.6993191]
[1743039601978,0.20627073,87236.0,87235.0,1.8113591]
[1743039603382,0.00017192,87238.0,87237.0,0.1146165]
[1743039603573,0.04457192,87238.0,87237.0,0.1146165]
[1743039603974,0.04457192,87238.0,87237.0,1.6146165]
[1743039604773,0.08897192,87238.0,87237.0,1.6146165]
[1743039604972,0.08997192,87238.0,87237.0,1.6146165]
[1743039609080,0.10298637,87242.0,87241.0,0.1146112]
[1743039609375,0.13753088,87246.0,87245.0,0.1146059]
[1743039609578,0.13753088,87246.0,87245.0,0.5874059]
[1743039609970,0.13753088,87246.0,87245.0,2.0874059]
[1743039610174,0.13753088,87246.0,87245.0,2.2142059]
[1743039610371,0.00017192,87254.0,87253.0,0.1145954]
[1743039610584,2e-08,87254.0,87253.0,0.9969954]
[1743039610886,0.20627073,87262.0,87253.0,0.9969954]
[1743039610887,0.20627073,87262.0,87261.0,0.1145849]
[1743039611075,0.20739074,87262.0,87261.0,0.4759849]
[1743039611278,0.20739074,87262.0,87261.0,1.9759849]
[1743039611478,0.20627073,87262.0,87261.0,1.9759849]
[1743039611686,0.20627073,87262.0,87261.0,2.06828919]
[1743039612978,0.00017192,87270.0,87266.0,0.0572891]
[1743039613178,0.00017192,87270.0,87269.0,0.4753744]
[1743039613378,0.00129193,87270.0,87269.0,0.4759744]
[1743039613886,0.08579193,87270.0,87269.0,0.4759744]
[1743039614281,0.08567192,87270.0,87269.0,0.4759744]
[1743039614683,0.08467192,87270.0,87269.0,0.4759744]
[1743039614888,0.08567192,87270.0,87269.0,0.4759744]
[1743039615287,0.08767192,87270.0,87269.0,0.4759744]
[1743039617186,0.08767192,87270.0,87269.0,0.1151744]
[1743039617595,0.08767192,87270.0,87269.0,0.1975744]
[1743039619388,0.04677192,87270.0,87269.0,0.1975744]
[1743039619593,0.0433,87278.0,87274.0,0.0572839]
[1743039619789,0.0439,87277.0,87276.0,0.1145652]
[1743039619991,0.04502001,87277.0,87276.0,0.2271252]
[1743039620190,0.04502001,87277.0,87276.0,0.2701252]
[1743039621390,0.04502001,87277.0,87276.0,0.28128193]
[1743039622303,0.0439,87277.0,87276.0,0.28128193]
[1743039622485,0.0449,87277.0,87276.0,0.28128193]
[1743039623597,0.04602001,87277.0,87276.0,0.28128193]
[1743039623789,0.0449,87277.0,87276.0,0.28128193]
[1743039626498,0.04606,87277.0,87276.0,0.28128193]
[1743039626796,0.0449,87277.0,87276.0,0.28128193]
[1743039627594,0.0449,87277.0,87276.0,0.16932193]
[1743039627789,0.0449,87277.0,87276.0,0.28128193]
[1743039630197,0.0449,87277.0,87276.0,1.78128193]
[1743039631803,0.0878,87277.0,87276.0,1.78128193]
[1743039632196,0.0449,87277.0,87276.0,1.78128193]
[1743039632389,0.0449,87277.0,87276.0,1.82278193]
[1743039633399,0.05373708,87277.0,87276.0,1.82278193]
[1743039634804,0.05377974,87277.0,87276.0,1.82278193]
[1743039635997,0.06034069,87277.0,87276.0,1.82278193]
[1743039639705,0.07086438,87277.0,87276.0,1.82278193]
[1743039640600,0.07085661,87277.0,87276.0,1.82278193]
[1743039644003,0.07085661,87277.0,87276.0,1.62632193]
[1743039644196,0.07085661,87277.0,87276.0,1.73824193]
[1743039644400,0.07085661,87277.0,87276.0,1.77944193]
[1743039644600,0.07085661,87277.0,87276.0,1.81914193]
[1743039645299,0.07085661,87277.0,87276.0,1.85894193]
[1743039646101,0.02695661,87277.0,87276.0,1.85894193]
[1743039647207,0.01808464,87277.0,87276.0,1.85894193]
[1743039648415,0.00756095,87277.0,87276.0,1.85894193]
[1743039654714,0.04836095,87277.0,87276.0,1.85894193]
[1743039655106,0.04836095,87277.0,87276.0,2.13227703]
[1743039658105,0.08846095,87277.0,87276.0,2.13227703]
[1743039658729,0.0004,87281.0,87278.0,0.0572807]
[1743039658908,0.0004,87281.0,87280.0,0.11456]
[1743039659105,0.0004,87281.0,87280.0,0.20026]
[1743039659305,0.0004,87281.0,87280.0,1.70026]
[1743039660502,0.17104249,87290.0,87286.0,0.0572759]
[1743039660715,0.0813,87289.0,87288.0,0.1145495]
[1743039661011,8e-05,87293.0,87292.0,0.1145442]
[1743039661311,0.00088,87293.0,87292.0,0.4759442]
[1743039661502,0.20525098,87295.0,87294.0,0.1145416]
[1743039661707,0.20525098,87295.0,87294.0,0.1151416]
[1743039662108,0.00017192,87301.0,87297.0,0.0572687]
[1743039662308,0.00017192,87301.0,87300.0,0.1145337]
[1743039662509,0.04337192,87301.0,87300.0,0.12671712]
[1743039670520,0.04337192,87301.0,87300.0,0.23859712]
[1743039672321,0.04337192,87301.0,87300.0,0.59939712]
[1743039673811,0.04337192,87301.0,87300.0,0.23859712]
[1743039674017,0.04337192,87301.0,87300.0,0.59939712]
[1743039674417,0.04337192,87301.0,87300.0,0.23859712]
[1743039674614,0.04337192,87301.0,87300.0,0.59939712]
[1743039675221,0.04970589,87301.0,87300.0,0.59939712]
[1743039676323,0.04970589,87301.0,87300.0,0.64329712]
[1743039676523,0.04970589,87301.0,87300.0,0.28249712]
[1743039676724,0.04970589,87301.0,87300.0,0.64329712]
[1743039677427,0.04970589,87301.0,87300.0,0.28249712]
[1743039677930,0.04970589,87301.0,87300.0,0.64329712]
[1743039678226,0.04970589,87301.0,87300.0,0.28249712]
[1743039678424,0.04970589,87301.0,87300.0,0.64329712]
[1743039679329,0.05852068,87301.0,87300.0,0.64329712]
[1743039682030,0.05853887,87301.0,87300.0,0.64329712]
[1743039683724,0.00048,87313.0,87312.0,0.114518]
[1743039683926,0.00048,87313.0,87312.0,0.226958]
[1743039684121,0.0004,87313.0,87312.0,0.226958]
[1743039684827,0.0004,87313.0,87312.0,0.2357593]
[1743039685025,0.0004,87313.0,87312.0,0.2793593]
[1743039685335,0.00017182,87321.0,87320.0,0.1145075]
[1743039685529,0.00093182,87321.0,87320.0,0.1151075]
[1743039686427,0.04263182,87321.0,87320.0,0.1151075]
[1743039687029,0.08353182,87321.0,87320.0,0.1151075]
[1743039687732,0.19803802,87321.0,87320.0,0.1151075]
[1743039687925,0.20826141,87321.0,87320.0,0.12665126]
[1743039688835,0.20826141,87321.0,87320.0,0.1151075]
[1743039692131,0.09375521,87321.0,87320.0,0.1151075]
[1743039693338,0.20826141,87321.0,87320.0,0.1151075]
[1743039695335,0.16736141,87321.0,87320.0,0.1151075]
[1743039695730,0.17621937,87321.0,87320.0,0.1151075]
[1743039696538,0.18262244,87321.0,87320.0,0.1151075]
[1743039697437,0.18260885,87321.0,87320.0,0.1151075]
[1743039698140,0.22540885,87321.0,87320.0,0.1565075]
[1743039699240,0.22555101,87321.0,87320.0,0.1565075]
[1743039702641,0.11104481,87321.0,87320.0,0.1565075]
[1743039703038,0.06824481,87321.0,87320.0,0.1565075]
[1743039705746,0.18275101,87321.0,87320.0,0.1565075]
[1743039705945,0.22615101,87321.0,87320.0,0.1565075]
[1743039707041,0.22607302,87321.0,87320.0,0.1565075]
[1743039709348,0.06816682,87321.0,87320.0,0.1151075]
[1743039709751,0.06740682,87321.0,87320.0,0.1547075]
[1743039709951,0.11076682,87321.0,87320.0,0.1547075]
[1743039710852,0.11074928,87321.0,87320.0,0.1547075]
[1743039712555,0.15054928,87321.0,87320.0,0.1547075]
[1743039712747,0.15057134,87321.0,87320.0,0.1547075]
[1743039714947,0.26507754,87321.0,87320.0,0.1547075]
[1743039715155,0.26507754,87321.0,87320.0,0.2665075]
[1743039715455,0.25485415,87321.0,87320.0,0.1547075]
[1743039716053,0.25485415,87321.0,87320.0,0.1955075]
[1743039718049,0.39170344,87321.0,87320.0,0.1955075]
[1743039720351,0.39163415,87321.0,87320.0,0.1955075]
[1743039722948,0.35183415,87321.0,87320.0,0.1151075]
[1743039723153,0.39283415,87321.0,87320.0,0.1151075]
[1743039723349,0.39283415,87321.0,87320.0,0.0006]
[1743039723549,0.39281703,87321.0,87320.0,0.0006]
[1743039724053,0.39281703,87321.0,87320.0,0.1151075]
[1743039724562,0.39281703,87321.0,87320.0,0.1564075]
[1743039727966,0.25596774,87321.0,87320.0,0.1564075]
[1743039728861,0.05786154,87321.0,87320.0,0.1564075]
[1743039729756,0.01616154,87321.0,87320.0,0.1564075]
[1743039730969,0.01540154,87321.0,87320.0,0.1564075]
[1743039731268,0.01542048,87321.0,87320.0,0.1564075]
[1743039731662,0.01618048,87321.0,87320.0,0.1564075]
[1743039732168,0.05778048,87321.0,87320.0,0.2681675]
[1743039732363,0.05782048,87321.0,87320.0,0.2681675]
[1743039732565,0.05782048,87321.0,87320.0,0.3100675]
[1743039733168,0.05797711,87321.0,87320.0,0.3100675]
[1743039735665,0.04897489,87321.0,87320.0,0.3100675]
[1743039735870,0.05802008,87321.0,87320.0,0.3100675]
[1743039738462,0.05722008,87321.0,87320.0,0.3100675]
[1743039738769,0.05798008,87321.0,87320.0,0.3100675]
[1743039739672,0.05806008,87321.0,87320.0,0.3100675]
[1743039741371,0.05806008,87321.0,87320.0,0.3100275]
[1743039741571,0.05722008,87321.0,87320.0,0.3100275]
[1743039741773,0.05798008,87321.0,87320.0,0.3100275]
[1743039742866,0.05796501,87321.0,87320.0,0.3100275]
[1743039743466,0.05796478,87321.0,87320.0,0.3100275]
[1743039743869,0.05720478,87321.0,87320.0,0.3100275]
[1743039745074,0.05804478,87321.0,87320.0,0.3100275]
[1743039746775,0.05797595,87321.0,87320.0,0.3100275]
[1743039747476,0.05797595,87321.0,87320.0,0.5156244]
[1743039747677,0.05789595,87321.0,87320.0,0.5156244]
[1743039747877,0.05713595,87321.0,87320.0,0.5156244]
[1743039748272,0.05789595,87321.0,87320.0,0.5156244]
[1743039748779,0.05791377,87321.0,87320.0,0.5156244]
[1743039749369,0.09891377,87321.0,87320.0,0.5156244]
[1743039750595,0.09812113,87321.0,87320.0,0.5156244]
[1743039750969,0.09888113,87321.0,87320.0,0.5156244]
[1743039751480,0.09888113,87321.0,87320.0,0.3100275]
[1743039752079,0.21338733,87321.0,87320.0,0.3100275]
[1743039755673,0.05788113,87321.0,87320.0,0.3100275]
[1743039756074,0.05712113,87321.0,87320.0,0.3100275]
[1743039756277,0.05708931,87321.0,87320.0,0.3100275]
[1743039759379,0.05792931,87321.0,87320.0,0.5156244]
[1743039760184,0.05791401,87321.0,87320.0,0.5156244]
[1743039762079,0.05791596,87321.0,87320.0,0.5156244]
[1743039762483,0.05791596,87321.0,87320.0,0.4039044]
[1743039762783,0.21502216,87321.0,87320.0,0.2480969]
[1743039762983,0.21502216,87321.0,87320.0,0.3626044]
[1743039763184,0.21502216,87321.0,87320.0,0.1570075]
[1743039763488,0.2253593,87321.0,87320.0,0.1570075]
[1743039764085,0.22572468,87321.0,87320.0,0.1570075]
[1743039766383,0.23705008,87321.0,87320.0,0.1570075]
[1743039768689,0.23705008,87321.0,87316.0,0.262968]
[1743039768690,0.1145114,87317.0,87316.0,0.2057121]
[1743039768990,0.13971715,87317.0,87316.0,0.2063121]
[1743039769183,0.13971715,87317.0,87316.0,0.18053735]
[1743039769587,0.13971715,87317.0,87312.0,0.2738462]
[1743039769588,0.1145167,87313.0,87312.0,0.2738462]
[1743039769789,0.1145167,87313.0,87312.0,0.2744462]
[1743039769790,0.61236245,87313.0,87312.0,0.2744462]
[1743039769992,0.59738316,87313.0,87312.0,0.2744462]
[1743039770193,0.59738316,87313.0,87312.0,0.00077182]
[1743039770496,0.69592337,87313.0,87312.0,0.00077182]
[1743039770886,0.84592337,87313.0,87312.0,0.00077182]
[1743039771090,0.1145337,87300.0,87299.0,0.40783568]
[1743039771394,0.50134036,87300.0,87299.0,0.40851568]
[1743039771585,0.50270036,87300.0,87299.0,0.40851568]
[1743039772288,0.58720036,87300.0,87299.0,0.40851568]
[1743039774991,0.59874441,87300.0,87299.0,0.52305078]
[1743039775197,0.64288971,87300.0,87299.0,0.1152151]
[1743039775382,0.60168971,87300.0,87299.0,0.1152151]
[1743039775987,0.64228971,87300.0,87299.0,0.1152151]
[1743039776193,0.64228971,87300.0,87299.0,0.1576151]
[1743039776997,0.65388179,87300.0,87299.0,0.1576151]
[1743039777189,0.65389234,87300.0,87299.0,0.1576151]
[1743039778184,0.59820299,87300.0,87299.0,0.1576151]
[1743039780600,0.58661091,87300.0,87299.0,0.1576151]
[1743039781497,0.22581091,87300.0,87299.0,0.1576151]
[1743039781691,0.58661091,87300.0,87299.0,0.1576151]
[1743039781992,0.50271091,87300.0,87299.0,0.1576151]
[1743039782693,0.50271091,87300.0,87299.0,0.1693067]
[1743039782999,0.00776307,87300.0,87299.0,0.1693067]
[1743039783387,0.00136,87300.0,87299.0,0.1693067]
[1743039792393,0.00763326,87300.0,87299.0,0.1693067]
[1743039795300,0.00763326,87300.0,87299.0,0.1269067]
[1743039801805,0.12216696,87300.0,87299.0,0.11236]
[1743039802000,0.1145442,87292.0,87289.0,0.452]
[1743039802201,0.48564623,87292.0,87291.0,0.0006]
[1743039802418,0.1145469,87290.0,87289.0,0.0424]
[1743039802605,0.12480893,87290.0,87289.0,0.1145482]
[1743039802811,0.1145482,87289.0,87288.0,0.00045825]
[1743039803012,0.16871023,87289.0,87288.0,0.11500775]
[1743039803204,0.05416203,87289.0,87288.0,0.11564775]
[1743039803508,0.07065069,87289.0,87288.0,0.11564775]
[1743039803703,0.07069069,87289.0,87288.0,0.11564775]
[1743039803903,0.18523889,87289.0,87288.0,0.11564775]
[1743039804103,0.18523889,87289.0,87288.0,0.15574775]
[1743039805010,0.43149069,87289.0,87288.0,0.15674775]
[1743039805511,0.54603889,87289.0,87288.0,0.15674775]
[1743039805814,0.43149069,87289.0,87288.0,0.15774775]
[1743039806216,0.43149069,87289.0,87288.0,1.65774775]
[1743039806709,0.07065069,87289.0,87288.0,1.65774775]
[1743039806906,0.06933069,87289.0,87288.0,1.65774775]
[1743039807108,0.1710604,87292.0,87291.0,0.1145455]
[1743039807309,0.1724204,87292.0,87291.0,0.1151855]
[1743039807915,0.1724204,87292.0,87291.0,1.6151855]
[1743039810514,0.1710604,87292.0,87291.0,1.6151855]
[1743039810716,8e-05,87293.0,87292.0,0.1145442]
[1743039810910,8e-05,87293.0,87292.0,0.1567442]
[1743039818113,8e-05,87293.0,87292.0,0.2683842]
[1743039818309,0.0014,87293.0,87292.0,0.2683842]
[1743039820210,0.00762291,87293.0,87292.0,0.2683842]
[1743039822109,0.00770292,87293.0,87292.0,0.3115842]
[1743039823710,0.00770292,87293.0,87292.0,1.8115842]
[1743039823915,0.00630291,87293.0,87292.0,1.8115842]
[1743039826708,0.00630291,87293.0,87292.0,0.3115842]
[1743039827021,0.04630291,87293.0,87292.0,0.3115842]
[1743039827213,0.04762291,87293.0,87292.0,0.3115842]
[1743039836623,0.09212291,87293.0,87292.0,0.3115842]
[1743039840424,0.09204291,87293.0,87292.0,0.3115842]
[1743039841729,0.08582,87293.0,87292.0,0.3115842]
[1743039842731,0.08582,87293.0,87292.0,1.8115842]
[1743039844533,0.2003629,87293.0,87292.0,0.1999442]
[1743039844736,0.2003629,87293.0,87292.0,0.1583442]
[1743039845632,0.2003629,87293.0,87292.0,0.0006]
[1743039845825,0.2003629,87293.0,87288.0,0.00045825]
[1743039845826,0.1145482,87289.0,87288.0,0.00045825]
[1743039846025,0.1158682,87289.0,87288.0,0.11568775]
[1743039846236,0.12188531,87289.0,87288.0,0.11568775]
[1743039846624,0.20278531,87289.0,87288.0,0.11568775]
[1743039847028,0.04861711,87289.0,87288.0,0.15648775]
[1743039847623,0.04861711,87289.0,87288.0,0.15748775]
[1743039847839,0.20146531,87289.0,87288.0,0.16919382]
[1743039848137,0.20278531,87289.0,87288.0,0.16919382]
[1743039848330,0.21314516,87289.0,87288.0,0.16919382]
[1743039848528,0.21314516,87289.0,87288.0,0.15748775]
[1743039849942,0.21314516,87289.0,87288.0,0.16911722]
[1743039850331,0.09859696,87289.0,87288.0,0.16911722]
[1743039850735,0.19764848,87289.0,87288.0,0.16911722]
[1743039851235,0.19764848,87289.0,87288.0,1.66911722]
[1743039852031,0.31219668,87289.0,87288.0,1.66911722]
[1743039856236,0.06029696,87289.0,87288.0,1.66911722]
[1743039856437,0.01769696,87289.0,87288.0,1.66911722]
[1743039856739,0.13735152,87291.0,87290.0,0.1145469]
[1743039856945,0.3608,87319.0,87308.0,0.1145232]
[1743039856946,0.01119666,87309.0,87308.0,0.1145232]
[1743039857136,0.01251666,87309.0,87308.0,0.2261232]
[1743039857333,0.23996574,87311.0,87310.0,0.1145206]
[1743039857538,0.23996574,87311.0,87310.0,0.2267206]
[1743039859441,0.23996574,87311.0,87310.0,0.3064206]
[1743039859829,0.23996574,87311.0,87310.0,0.31796144]
[1743039860239,8e-05,87312.0,87311.0,0.1145193]
[1743039860439,8e-05,87312.0,87311.0,0.1151193]
[1743039860637,8e-05,87312.0,87311.0,0.1954193]
[1743039862243,8e-05,87312.0,87311.0,0.1555193]
[1743039863334,8e-05,87312.0,87311.0,0.1947193]
[1743039866836,0.00017182,87319.0,87318.0,0.1145101]
[1743039867141,0.3612,87345.0,87318.0,0.3614]
[1743039867339,0.00132,87345.0,87344.0,0.114476]
[1743039867538,0.00132,87345.0,87344.0,1.726636]
[1743039867742,0.0004,87345.0,87344.0,1.726636]
[1743039867944,0.0004,87345.0,87344.0,1.765336]
[1743039868447,0.0004,87345.0,87344.0,1.802736]
[1743039869542,0.0004,87345.0,87344.0,1.81123192]
[1743039870247,8e-05,87347.0,87346.0,0.1144734]
[1743039870447,8e-05,87347.0,87346.0,0.1150734]
[1743039874642,8e-05,87347.0,87346.0,0.1960734]
[1743039877836,8e-05,87347.0,87346.0,0.3075934]
[1743039879451,8e-05,87347.0,87346.0,0.1960734]
[1743039879650,8e-05,87347.0,87346.0,0.1556734]
[1743039879850,0.0388,87347.0,87346.0,0.1556734]
[1743039880051,0.076,87347.0,87346.0,0.1556734]
[1743039881254,0.1904721,87347.0,87346.0,0.1556734]
[1743039881455,0.1904721,87347.0,87346.0,0.0412]
[1743039881652,0.1904721,87347.0,87336.0,0.11465572]
[1743039881653,0.1144852,87337.0,87336.0,0.11465572]
[1743039881846,0.12420007,87337.0,87336.0,0.15495572]
[1743039882043,0.12420007,87337.0,87336.0,0.27004062]
[1743039882447,0.23900007,87337.0,87336.0,0.27004062]
[1743039882754,0.2302052,87337.0,87336.0,0.27004062]
[1743039882954,0.23667375,87337.0,87336.0,0.27004062]
[1743039885352,0.23667375,87337.0,87336.0,0.00077182]
[1743039885558,0.23667375,87337.0,87336.0,0.00017182]
[1743039886360,0.23667375,87337.0,87336.0,0.00085182]
[1743039886962,0.24694488,87337.0,87336.0,0.00085182]
[1743039887662,0.24694488,87337.0,87336.0,0.11533832]
[1743039889558,0.24694488,87337.0,87336.0,0.00085182]
[1743039889864,0.24694488,87337.0,87336.0,0.00017182]
[1743039891364,0.24694488,87337.0,87336.0,0.11465832]
[1743039891764,0.25854934,87337.0,87336.0,0.11465832]
[1743039892167,0.25854934,87337.0,87336.0,0.11525832]
[1743039892357,0.25854934,87337.0,87336.0,0.15545832]
[1743039892759,0.25854934,87337.0,87336.0,0.11525832]
[1743039896170,0.25854934,87337.0,87336.0,0.15365832]
[1743039897666,0.25854934,87337.0,87336.0,0.03917182]
[1743039897869,0.25854934,87337.0,87336.0,0.03857182]
[1743039898969,0.25854934,87337.0,87336.0,0.03921182]
[1743039900564,0.25854934,87337.0,87336.0,0.03857182]
[1743039900765,0.25854934,87337.0,87336.0,0.03949182]
[1743039901069,0.25854934,87337.0,87336.0,0.03857182]
[1743039901576,0.25854934,87337.0,87336.0,0.00081182]
[1743039901766,0.25854934,87337.0,87336.0,0.00017182]
[1743039902665,0.25854934,87337.0,87336.0,0.00081182]
[1743039902871,0.25854934,87337.0,87336.0,0.00017182]
[1743039903772,0.61934934,87337.0,87336.0,0.00017182]
[1743039910073,0.61934934,87337.0,87336.0,0.04157182]
[1743039915982,0.58084934,87337.0,87336.0,0.04157182]
[1743039916481,0.22004934,87337.0,87336.0,0.04157182]
[1743039916692,0.58978346,87337.0,87336.0,0.04157182]
[1743039917282,0.64544979,87337.0,87336.0,0.04157182]
[1743039917874,0.1144892,87334.0,87333.0,1e-08]
[1743039918079,0.12434332,87334.0,87333.0,1e-08]
[1743039918384,0.1145023,87324.0,87321.0,0.1145056]
[1743039918584,0.16533772,87323.0,87322.0,0.1484049]
[1743039918783,0.19949773,87323.0,87322.0,0.0349]
[1743039918982,0.19949773,87323.0,87322.0,0.1494049]
[1743039919283,0.21623741,87323.0,87322.0,0.1494049]
[1743039919681,0.21623741,87323.0,87322.0,0.0349]
[1743039919882,0.21623741,87323.0,87322.0,0.0359]
[1743039920278,0.57703741,87323.0,87322.0,0.0359]
[1743039920482,0.58638031,87323.0,87322.0,0.0349]
[1743039920685,0.69786031,87323.0,87322.0,0.0349]
[1743039921386,0.83511687,87323.0,87322.0,0.0349]
[1743039921788,0.83511687,87323.0,87322.0,0.0339]
[1743039923187,0.63919397,87323.0,87322.0,0.1484049]
[1743039923578,0.63919397,87323.0,87322.0,0.1490049]
[1743039923778,0.63919397,87323.0,87322.0,0.1881049]
[1743039923984,0.63919397,87323.0,87322.0,1.6881049]
[1743039924185,0.55761571,87323.0,87322.0,1.6881049]
[1743039925086,0.19681571,87323.0,87322.0,1.6881049]
[1743039925389,0.19672789,87323.0,87322.0,1.6881049]
[1743039926079,0.08222429,87323.0,87322.0,1.6881049]
[1743039926281,0.08126428,87323.0,87322.0,1.6881049]
[1743039926687,0.19576788,87323.0,87322.0,1.6881049]
[1743039928388,0.14008958,87323.0,87322.0,1.6881049]
[1743039929186,0.13124328,87323.0,87322.0,1.6881049]
[1743039929394,0.14017658,87323.0,87322.0,1.6881049]
[1743039931386,0.14017658,87323.0,87322.0,0.1881049]
[1743039931581,0.14109658,87323.0,87322.0,0.1881049]
[1743039931787,0.02659298,87323.0,87322.0,0.1881049]
[1743039931983,0.02659298,87323.0,87322.0,0.2995849]
[1743039932188,0.17136046,87335.0,87334.0,0.1144892]
[1743039932390,0.20427173,87341.0,87340.0,0.1144813]
[1743039932593,0.20491173,87341.0,87340.0,0.1151213]
[1743039932791,0.057231,87355.0,87347.0,0.1144721]
[1743039933092,0.24056575,87348.0,87347.0,0.1152321]
[1743039933691,0.24056575,87348.0,87347.0,0.1822321]
[1743039933990,0.24056575,87348.0,87347.0,0.19132533]
[1743039934189,0.27476065,87353.0,87352.0,0.1144656]
[1743039934394,0.27564066,87353.0,87352.0,0.4761456]
[1743039934588,0.0004,87361.0,87356.0,0.0572295]
[1743039934793,0.0004,87361.0,87360.0,0.1144551]
[1743039934997,0.0004,87361.0,87360.0,0.1156151]
[1743039935295,0.0004,87361.0,87360.0,1.6156151]
[1743039936389,0.00011336,87369.0,87364.0,0.0572243]
[1743039936587,0.00011336,87369.0,87368.0,0.1144446]
[1743039936898,0.00135337,87369.0,87368.0,0.1156446]
[1743039937087,0.00011336,87369.0,87368.0,0.1156446]
[1743039938300,0.11455666,87369.0,87368.0,1.6156446]
[1743039942899,0.00011336,87369.0,87368.0,1.6156446]
[1743039944404,0.0004,87377.0,87372.0,0.057219]
[1743039944595,0.0004,87377.0,87376.0,0.1144341]
[1743039944790,0.1159928,87377.0,87376.0,0.1155941]
[1743039945495,0.1485928,87377.0,87376.0,0.1155941]
[1743039946404,0.15734245,87377.0,87376.0,0.1155941]
[1743039946608,0.16381819,87377.0,87376.0,0.1155941]
[1743039948208,0.1638748,87377.0,87376.0,0.1155941]
[1743039948405,0.1638748,87377.0,87376.0,0.00116]
[1743039948706,0.1638748,87377.0,87346.0,0.20510425]
[1743039948707,0.1144564,87359.0,87358.0,0.05740032]
[1743039948902,0.1156164,87359.0,87358.0,0.05856032]
[1743039949104,0.1144564,87359.0,87358.0,0.05856032]
[1743039950804,0.1156164,87359.0,87358.0,0.05856032]
[1743039950997,0.1156164,87359.0,87358.0,1.55856032]
[1743039951193,0.1144564,87359.0,87358.0,1.55856032]
[1743039951596,0.4752564,87359.0,87358.0,1.50133172]
[1743039951803,0.48520955,87359.0,87358.0,1.50133172]
[1743039952008,0.48520955,87359.0,87358.0,1.61578942]
[1743039952303,0.48520955,87359.0,87358.0,0.00133172]
[1743039952520,0.48520955,87359.0,87358.0,0.11462942]
[1743039952807,0.48520955,87359.0,87358.0,0.11578942]
[1743039953009,0.49172588,87359.0,87358.0,0.11578942]
[1743039954510,0.13092588,87359.0,87358.0,0.11578942]
[1743039954810,0.49056588,87359.0,87358.0,0.11578942]
[1743039955008,0.49172588,87359.0,87358.0,0.11578942]
[1743039955200,0.49172588,87359.0,87358.0,0.18078942]
[1743039956208,0.48293273,87359.0,87358.0,0.18078942]
[1743039956708,0.12213273,87359.0,87358.0,0.18078942]
[1743039956908,0.48177273,87359.0,87358.0,0.18078942]
[1743039957108,0.48293273,87359.0,87358.0,0.18078942]
[1743039957408,0.48293273,87359.0,87358.0,0.00133172]
[1743039957613,0.48293273,87359.0,87358.0,0.00017172]
[1743039957995,0.48293273,87359.0,87358.0,0.00137172]
[1743039958195,0.49328984,87359.0,87358.0,0.00137172]
[1743039960000,0.49328984,87359.0,87358.0,0.00017172]
[1743039960602,0.49328984,87359.0,87358.0,0.00137172]
[1743039961002,0.50210565,87359.0,87358.0,0.00017172]
[1743039964410,0.14130565,87359.0,87358.0,0.00017172]
[1743039964600,0.50210565,87359.0,87358.0,0.00141172]
[1743039964805,0.50210565,87359.0,87358.0,0.00017172]
[1743039966614,0.50213543,87359.0,87358.0,0.00017172]
[1743039967415,0.14133543,87359.0,87358.0,0.00017172]
[1743039967614,0.50213543,87359.0,87358.0,0.00133172]
[1743039967812,0.50213543,87359.0,87358.0,0.00017172]
[1743039968011,0.1144669,87351.0,87350.0,0.20510425]
[1743039968203,0.48527249,87351.0,87350.0,0.20626425]
[1743039968804,0.50214593,87351.0,87350.0,0.20626425]
[1743039969316,0.50214593,87351.0,87350.0,0.32073245]
[1743039969513,0.50214593,87351.0,87350.0,0.20626425]